Workbook

Sheet 2018 emz (hidden)
A1: 2018
A2: Onderneming
B3: Fiscale Winst | D3: 0
B4: Zelfstandigenaftrek | D4: =IF(C5<>"ja",F4,G4) -> 0 | F4: =IF(D3>G4,G4,D3) -> 0 | G4: 7,280 | M4: ja
B5: Startersaftrek ja/nee | C5: nee | D5: =IF(C5="ja",F5,0) -> 0 | F5: 2,123 | M5: nee
B6: Winst na aftrek | D6: =+D3-F4-D5 -> 0
B7: MKB-vrijstelling | D7: =+D6*E7 -> 0 | E7: 14%
B8: Belastbare winst | D8: =+D6-D7 -> 0
A10: Loon | B10: Totaal loon | D10: 0
B11: Ingehouden LH | D11: 0
B12: Bijdrage ZVW | D12: 0
B13: Arbeidskorting | D13: 0
A15: Eigen woning | B15: WOZ waarde | D15: 0
B16: Eigen woning forfait | C16: 0.70% | D16: =+D15*C16 -> 0
B17: Betaalde rente hypotheek | D17: 0
B18: aftrekbare kosten eigen woning | D18: =+D17-D16 -> 0
A20: Berekening IB | D20: Inkomen
B21: Winst | D21: =+D8 -> 0
B22: Loon | D22: =+D10 -> 0
B23: aftrekbare kosten eigen woning | D23: =+D18 -> 0
B24: Inkomen | D24: =+D21+D22-D23 -> 0
B25: Arbeidsinkomen | D25: =+D3+D22 -> 0
B26: LH | D26: =+D11 -> 0
B27: Bijdrage ZVW | D27: =+D12 -> 0
B28: Arbeidskorting | D28: =+D13 -> 0
B30: IB schijf 1 | C30: 36.55% | E30: =+W30 -> 1- | G30: 0 | H30: 20,142 | K30: =IF(D24>H30,H30*C30,D24*C30) -> 0 | W30: =+K30-1 -> 1-
B31: IB schijf 2 | C31: 40.85% | E31: =FLOOR(W31,1) -> 0 | G31: =H30+1 -> 20,143 | H31: 33,994 | I31: =IF($D$24<H31,$D$24-G31,0) -> 20,143- | J31: =+I31*C31 -> 8,228- | K31: =IF($D$24>=H31,(H31-G31)*C31,0) -> 0 | W31: =IF((I31+K31)>0,J31+K31,0) -> 0
B32: IB schijf 3 | C32: 40.85% | E32: =FLOOR(W32,1) -> 0 | G32: =H31+1 -> 33,995 | H32: 68,507 | I32: =IF($D$24<H32,$D$24-G32,0) -> 33,995- | J32: =+I32*C32 -> 13,887- | K32: =IF($D$24>=H32,(H32-G32)*C32,0) -> 0 | W32: =IF((I32+K32)>0,J32+K32,0) -> 0
B33: IB schijf 4 | C33: 51.95% | E33: =FLOOR(W33,1) -> 0 | G33: =H32+1 -> 68,508 | K33: =IF($D$24>G33,(D24-G33)*C33,0) -> 0 | W33: =IF((I33+K33)>0,I33+K33,0) -> 0
B34: tariefsaanpassing EW | E34: =Inkomstenbelasting!B27 -> 0
F35: =SUM(E30:E34) -> (1) | X35: =+W30+W32+W31+W33 -> 1-
B36: Heffingskortingen
B37: Algemene heffingskorting | E37: ='Algemene heffingskorting'!H6 -> 2,265
B38: Arbeidskorting | E38: =Arbeidskorting!H8 -> 0
B39: Totale heffingskortingen | F39: =+E37+E38 -> 2,265
B40: Max heffingskorting | F40: ='Totale heffingskortingen'!B5 -> (1)
B41: Verschuldigde IB | F41: =F35-F40 -> 0
B43: Te betalen/ontvangen IB | F43: =F41-D26 -> 0 | H43: =D21*C44 -> 0
B44: Bijdrage ZVW | C44: 5.65% | F44: =IF(D21>G44,H44,H43) -> 0 | G44: 54614 | H44: =G44*C44 -> 3,085.69
B47: Belastingdruk | C47: =(F43+F44)/D3 -> 

Sheet 2019 emz (hidden)
A1: 2019
A2: Onderneming
B3: Fiscale Winst | D3: 0
B4: Zelfstandigenaftrek | D4: =IF(C5<>"ja",F4,G4) -> 0 | F4: =IF(D3>G4,G4,D3) -> 0 | G4: 7,280 | M4: ja
B5: Startersaftrek ja/nee | C5: nee | D5: =IF(C5="ja",F5,0) -> 0 | F5: 2,123 | M5: nee
B6: Winst na aftrek | D6: =+D3-F4-D5 -> 0
B7: MKB-vrijstelling | D7: =+D6*E7 -> 0 | E7: 14%
B8: Belastbare winst | D8: =+D6-D7 -> 0
A10: Loon | B10: Totaal loon | D10: 0
B11: Ingehouden LH | D11: 0
B12: Bijdrage ZVW | D12: 0
B13: Arbeidskorting | D13: 0
A15: Eigen woning | B15: WOZ waarde | D15: 0
B16: Eigen woning forfait | C16: 0.65% | D16: =+D15*C16 -> 0
B17: Betaalde rente hypotheek | D17: 0
B18: aftrekbare kosten eigen woning | D18: =+D17-D16 -> 0
A20: Berekening IB | D20: Inkomen
B21: Winst | D21: =+D8 -> 0
B22: Loon | D22: =+D10 -> 0
B23: aftrekbare kosten eigen woning | D23: =+D18 -> 0
B24: Inkomen | D24: =+D21+D22-D23 -> 0
B25: Arbeidsinkomen | D25: =+D3+D22 -> 0
B26: LH | D26: =+D11 -> 0
B27: Bijdrage ZVW | D27: =+D12 -> 0
B28: Arbeidskorting | D28: =+D13 -> 0
B30: IB schijf 1 | C30: =Inkomstenbelasting!J3 -> 36.65% | E30: =+W30 -> 1- | G30: 0 | H30: =Inkomstenbelasting!I3 -> 20,384 | K30: =IF(D24>H30,H30*C30,D24*C30) -> 0 | W30: =+K30-1 -> 1-
B31: IB schijf 2 | C31: =Inkomstenbelasting!J4 -> 38.10% | E31: =FLOOR(W31,1) -> 0 | G31: =H30+1 -> 20,385 | H31: =Inkomstenbelasting!I4 -> 34,300 | I31: =IF($D$24<H31,$D$24-G31,0) -> 20,385- | J31: =+I31*C31 -> 7,767- | K31: =IF($D$24>=H31,(H31-G31)*C31,0) -> 0 | W31: =IF((I31+K31)>0,J31+K31,0) -> 0
B32: IB schijf 3 | C32: =Inkomstenbelasting!J5 -> 38.10% | E32: =FLOOR(W32,1) -> 0 | G32: =H31+1 -> 34,301 | H32: =Inkomstenbelasting!I5 -> 68,507 | I32: =IF($D$24<H32,$D$24-G32,0) -> 34,301- | J32: =+I32*C32 -> 13,069- | K32: =IF($D$24>=H32,(H32-G32)*C32,0) -> 0 | W32: =IF((I32+K32)>0,J32+K32,0) -> 0
B33: IB schijf 4 | C33: =Inkomstenbelasting!J6 -> 51.75% | E33: =FLOOR(W33,1) -> 0 | G33: =H32+1 -> 68,508 | K33: =IF($D$24>G33,(D24-G33)*C33,0) -> 0 | W33: =IF((I33+K33)>0,I33+K33,0) -> 0
B34: tariefsaanpassing EW | E34: =Inkomstenbelasting!C27 -> 0
F35: =SUM(E30:E34) -> (1) | X35: =+W30+W32+W31+W33 -> 1-
B36: Heffingskortingen
B37: Algemene heffingskorting | E37: ='Algemene heffingskorting'!Q6 -> 2,477
B38: Arbeidskorting | E38: =Arbeidskorting!S8 -> 0
B39: Totale heffingskortingen | F39: =+E37+E38 -> 2,477
B40: Max heffingskorting | F40: ='Totale heffingskortingen'!E5 -> (1)
B41: Verschuldigde IB | F41: =F35-F40 -> 0
B43: Te betalen/ontvangen IB | F43: =F41-D26 -> 0 | H43: =D21*C44 -> 0
B44: Bijdrage ZVW | C44: 5.70% | F44: =IF(D21>G44,H44,H43) -> 0 | G44: 55923 | H44: =G44*C44 -> 3,187.61
B47: Belastingdruk | C47: =(F43+F44)/D3 -> 

Sheet 2020 emz (hidden)
A1: 2020
A2: Onderneming
B3: Fiscale Winst | D3: 0
B4: Zelfstandigenaftrek | D4: =IF(C5<>"ja",F4,G4) -> 0 | F4: =IF(D3>G4,G4,D3) -> 0 | G4: 7,030 | M4: ja
B5: Startersaftrek ja/nee | C5: nee | D5: =IF(C5="ja",F5,0) -> 0 | F5: 2,123 | M5: nee
B6: Winst na aftrek | D6: =+D3-F4-D5 -> 0
B7: MKB-vrijstelling | D7: =+D6*E7 -> 0 | E7: 14%
B8: Belastbare winst | D8: =+D6-D7 -> 0
A10: Loon | B10: Totaal loon | D10: 0
B11: Ingehouden LH | D11: 0
B12: Bijdrage ZVW | D12: 0
B13: Arbeidskorting | D13: 0
A15: Eigen woning | B15: WOZ waarde | D15: 0
B16: Eigen woning forfait | C16: 0.60% | D16: =+D15*C16 -> 0
B17: Betaalde rente hypotheek | D17: 0
B18: aftrekbare kosten eigen woning | D18: =+D17-D16 -> 0
A20: Berekening IB | D20: Inkomen
B21: Winst | D21: =+D8 -> 0
B22: Loon | D22: =+D10 -> 0
B23: aftrekbare kosten eigen woning | D23: =+D18 -> 0
B24: Inkomen | D24: =+D21+D22-D23 -> 0
B25: Arbeidsinkomen | D25: =+D3+D22 -> 0
B26: LH | D26: =+D11 -> 0
B27: Bijdrage ZVW | D27: =+D12 -> 0
B28: Arbeidskorting | D28: =+D13 -> 0
B30: IB schijf 1 | C30: =Inkomstenbelasting!O3 -> 37.35% | E30: =+W30 -> 1- | G30: 0 | H30: =Inkomstenbelasting!N3 -> 20,751 | K30: =IF(D24>H30,H30*C30,D24*C30) -> 0 | W30: =+K30-1 -> 1-
B31: IB schijf 2 | C31: =Inkomstenbelasting!O4 -> 37.35% | E31: =FLOOR(W31,1) -> 0 | G31: =H30+1 -> 20,752 | H31: =Inkomstenbelasting!N4 -> 34,764 | I31: =IF($D$24<H31,$D$24-G31,0) -> 20,752- | J31: =+I31*C31 -> 7,751- | K31: =IF($D$24>=H31,(H31-G31)*C31,0) -> 0 | W31: =IF((I31+K31)>0,J31+K31,0) -> 0
B32: IB schijf 3 | C32: =Inkomstenbelasting!O5 -> 37.35% | E32: =FLOOR(W32,1) -> 0 | G32: =H31+1 -> 34,765 | H32: =Inkomstenbelasting!N5 -> 68,507 | I32: =IF($D$24<H32,$D$24-G32,0) -> 34,765- | J32: =+I32*C32 -> 12,985- | K32: =IF($D$24>=H32,(H32-G32)*C32,0) -> 0 | W32: =IF((I32+K32)>0,J32+K32,0) -> 0
B33: IB schijf 4 | C33: =Inkomstenbelasting!O6 -> 49.50% | E33: =FLOOR(W33,1) -> 0 | G33: =H32+1 -> 68,508 | K33: =IF($D$24>G33,(D24-G33)*C33,0) -> 0 | W33: =IF((I33+K33)>0,I33+K33,0) -> 0
B34: tariefsaanpassing aftrekposten | E34: =Inkomstenbelasting!D31 -> 0
B35: tariefsaanpassing EW | E35: =Inkomstenbelasting!D27 -> 0
F36: =SUM(E30:E35) -> (1) | X36: =+W30+W32+W31+W33 -> 1-
B37: Heffingskortingen
B38: Algemene heffingskorting | E38: ='Algemene heffingskorting'!H24 -> 2,711
B39: Arbeidskorting | E39: =Arbeidskorting!J29 -> 0
B40: Totale heffingskortingen | F40: =+E38+E39 -> 2,711
B41: Max heffingskorting | F41: ='Totale heffingskortingen'!H5 -> (1)
B42: Verschuldigde IB | F42: =F36-F41 -> 0
B44: Te betalen/ontvangen IB | F44: =F42-D26 -> 0 | H44: =IF(D21>0,D21*C45,0) -> 0
B45: Bijdrage ZVW | C45: 5.45% | F45: =IF(D21>G45,H45,H44) -> 0 | G45: 57,232 | H45: =G45*C45 -> 3,119.14
B48: Belastingdruk | C48: =(F44+F45)/D3 -> 

Sheet 2021 emz (hidden)
A1: 2021
A2: Onderneming
B3: Fiscale Winst | D3: 0
B4: Zelfstandigenaftrek | D4: =IF(C5<>"ja",F4,G4) -> 0 | F4: =IF(D3>G4,G4,D3) -> 0 | G4: 6,670 | M4: ja
B5: Startersaftrek ja/nee | C5: nee | D5: =IF(C5="ja",F5,0) -> 0 | F5: 2,123 | M5: nee
B6: Winst na aftrek | D6: =+D3-F4-D5 -> 0
B7: MKB-vrijstelling | D7: =+D6*E7 -> 0 | E7: 14%
B8: Belastbare winst | D8: =+D6-D7 -> 0
A10: Loon | B10: Totaal loon | D10: 0
B11: Ingehouden LH | D11: 0
B12: Bijdrage ZVW | D12: 0
B13: Arbeidskorting | D13: 0
A15: Eigen woning | B15: WOZ waarde | D15: 0
B16: Eigen woning forfait | C16: 0.50% | D16: =+D15*C16 -> 0
B17: Betaalde rente hypotheek | D17: 0
B18: aftrekbare kosten eigen woning | D18: =+D17-D16 -> 0
A20: Berekening IB | D20: Inkomen
B21: Winst | D21: =+D8 -> 0
B22: Loon | D22: =+D10 -> 0
B23: aftrekbare kosten eigen woning | D23: =+D18 -> 0
B24: Inkomen | D24: =+D21+D22-D23 -> 0
B25: Arbeidsinkomen | D25: =+D3+D22 -> 0
B26: LH | D26: =+D11 -> 0
B27: Bijdrage ZVW | D27: =+D12 -> 0
B28: Arbeidskorting | D28: =+D13 -> 0
B30: IB schijf 1 | C30: =Inkomstenbelasting!T3 -> 37.10% | E30: =+W30 -> 1- | G30: 0 | H30: =Inkomstenbelasting!S3 -> 21,167 | K30: =IF(D24>H30,H30*C30,D24*C30) -> 0 | W30: =+K30-1 -> 1-
B31: IB schijf 2 | C31: =Inkomstenbelasting!T4 -> 37.10% | E31: =FLOOR(W31,1) -> 0 | G31: =H30+1 -> 21,168 | H31: =Inkomstenbelasting!S4 -> 35,286 | I31: =IF($D$24<H31,$D$24-G31,0) -> 21,168- | J31: =+I31*C31 -> 7,853- | K31: =IF($D$24>=H31,(H31-G31)*C31,0) -> 0 | W31: =IF((I31+K31)>0,J31+K31,0) -> 0
B32: IB schijf 3 | C32: =Inkomstenbelasting!T5 -> 37.10% | E32: =FLOOR(W32,1) -> 0 | G32: =H31+1 -> 35,287 | H32: =Inkomstenbelasting!S5 -> 68,507 | I32: =IF($D$24<H32,$D$24-G32,0) -> 35,287- | J32: =+I32*C32 -> 13,091- | K32: =IF($D$24>=H32,(H32-G32)*C32,0) -> 0 | W32: =IF((I32+K32)>0,J32+K32,0) -> 0
B33: IB schijf 4 | C33: =Inkomstenbelasting!T6 -> 49.50% | E33: =FLOOR(W33,1) -> 0 | G33: =H32+1 -> 68,508 | K33: =IF($D$24>G33,(D24-G33)*C33,0) -> 0 | W33: =IF((I33+K33)>0,I33+K33,0) -> 0
B34: tariefsaanpassing aftrekposten | E34: =Inkomstenbelasting!E31 -> 0
B35: tariefsaanpassing EW | E35: =Inkomstenbelasting!E27 -> 0
F36: =SUM(E30:E35) -> (1) | X36: =+W30+W32+W31+W33 -> 1-
B37: Heffingskortingen
B38: Algemene heffingskorting | E38: ='Algemene heffingskorting'!Q24 -> 2,837
B39: Arbeidskorting | E39: =Arbeidskorting!U29 -> 0
B40: Totale heffingskortingen | F40: =+E38+E39 -> 2,837
B41: Max heffingskorting | F41: ='Totale heffingskortingen'!K5 -> (1)
B42: Verschuldigde IB | F42: =F36-F41 -> 0
B44: Te betalen/ontvangen IB | F44: =F42-D26 -> 0 | H44: =IF(D21>0,D21*C45,0) -> 0
B45: Bijdrage ZVW | C45: 5.75% | F45: =IF(D21>G45,H45,H44) -> 0 | G45: 58,311 | H45: =G45*C45 -> 3,352.88
B48: Belastingdruk | C48: =(F44+F45)/D3 -> 

Sheet 2022 emz (hidden)
B2: 2022
B3: Onderneming
C4: Fiscale Winst | E4: 0
C5: Zelfstandigenaftrek | D5: nee | E5: =IF(AND(D5="ja",D6="nee"),G5,IF(AND(D5="ja",D6="ja"),H5,(IF(D5="nee",0)))) -> 0 | G5: =IF(E4>H5,H5,E4) -> 0 | H5: 6,310 | N5: ja
C6: Startersaftrek ja/nee | D6: nee | E6: =IF(AND(D6="ja",D5="ja"),G6,0) -> 0 | G6: 2,123 | N6: nee
C7: Winst na aftrek | E7: =+E4-E5-E6 -> 0
C8: MKB-vrijstelling | E8: =+E7*F8 -> 0 | F8: 14%
C9: Belastbare winst | E9: =+E7-E8 -> 0
B11: Loon | C11: Totaal loon (tegenwoordige) | E11: 0 | AB11: IB Netto sheet Kees de Boekhouder
C12: Totaal uitkering (vroegere) | E12: 0 | AB12: Versie 2.4 september 2022
C13: Ingehouden LH | E13: 0
C14: Bijdrage ZVW | E14: 0
C15: Arbeidskorting | E15: 0
B17: Eigen woning | C17: WOZ waarde | E17: 0
C18: Eigen woning forfait | D18: 0.45% | E18: =+E17*D18 -> 0
C19: Betaalde rente hypotheek | E19: 0
C20: Belastbare inkomsten eigen woning | E20: =+E18-E19 -> 0
B22: Berekening IB | E22: Inkomen
C23: Winst | E23: =+E9 -> 0
C24: Loon/uitkering | E24: =+E11+E12 -> 0 | AC24: `
C25: Belastbare inkomsten eigen woning | E25: =+E20 -> 0
C26: Inkomen | E26: =+E23+E24+E25 -> 0
C27: Arbeidsinkomen | E27: =+E4+E11 -> 0
C28: LH | E28: =+E13 -> 0
C29: Bijdrage ZVW | E29: =+E14 -> 0
C30: Arbeidskorting | E30: =+E15 -> 0
C32: IB schijf 1 | D32: =Inkomstenbelasting!Y3 -> 37.07% | F32: =+X32 -> (1) | H32: 0 | I32: =Inkomstenbelasting!X3 -> 35,472 | L32: =IF(E26>I32,I32*D32,E26*D32) -> 0 | X32: =+L32-1 -> 1-
C33: IB schijf 2 | D33: =Inkomstenbelasting!Y4 -> 37.07% | F33: =FLOOR(X33,1) -> 0 | H33: =I32+1 -> 35,473 | I33: =Inkomstenbelasting!X4 -> 69,398 | J33: =IF($E$26<I33,$E$26-H33,0) -> 35,473- | K33: =+J33*D33 -> 13,150- | L33: =IF($E$26>=I33,(I33-H33)*D33,0) -> 0 | X33: =IF((J33+L33)>0,K33+L33,0) -> 0
C34: IB schijf 3 | D34: =Inkomstenbelasting!Y5 -> 49.50% | F34: =FLOOR(X34,1) -> 0 | H34: =I33+1 -> 69,399 | I34: =Inkomstenbelasting!X5 -> 0 | J34: =IF($E$26<I34,$E$26-H34,0) -> 0 | K34: =+J34*D34 -> 0 | L34: =IF($E$26>=H34,(E26-H34)*D34,0) -> 0 | X34: =IF((J34+L34)>0,K34+L34,0) -> 0
C36: tariefsaanpassing aftrekposten | F36: =Inkomstenbelasting!F31 -> 0
G38: =SUM(F32:F36) -> (1) | Y38: =+X32+X34+X33+X35 -> 1-
C39: Heffingskortingen
C40: Algemene heffingskorting | F40: ='Algemene heffingskorting'!H39 -> 2,888
C41: Arbeidskorting | F41: =Arbeidskorting!J45 -> 0
C42: Totale heffingskortingen | G42: =+F40+F41 -> 2,888
C43: Max heffingskorting | G43: ='Totale heffingskortingen'!N5 -> (1)
C44: Verschuldigde IB en PVV | G44: =G38-G43 -> 0
C46: Te betalen/ontvangen IB / PVV | G46: =G44-E28 -> 0 | I46: =IF(E23>0,E23*D47,0) -> 0
C47: Bijdrage ZVW | D47: 5.50% | G47: =IF(E23>K47,I47,I46) -> 0 | H47: 59,706 | I47: =K47*D47 -> 3,283.83 | J47: =H47-E24 -> 59,706 | K47: =IF(J47>0,J47,0) -> 59,706
C50: Belastingdruk | D50: =(G46+G47)/E4 -> 

Sheet 2023 emz
B2: 2023
B3: Onderneming
C4: Fiscale Winst | E4: 0
C5: Zelfstandigenaftrek | D5: ja | E5: =IF(AND(D5="ja",D6="nee"),G5,IF(AND(D5="ja",D6="ja"),H5,(IF(D5="nee",0)))) -> 0 | G5: =IF(E4>H5,H5,E4) -> 0 | H5: 5,030 | N5: ja
C6: Startersaftrek ja/nee | D6: nee | E6: =IF(AND(D6="ja",D5="ja"),G6,0) -> 0 | G6: 2,123 | N6: nee
C7: Winst na aftrek | E7: =+E4-E5-E6 -> 0
C8: MKB-vrijstelling | E8: =+E7*F8 -> 0 | F8: 14%
C9: Belastbare winst | E9: =+E7-E8 -> 0
B11: Loon | C11: Totaal loon (tegenwoordige) | E11: 0 | AB11: IB Netto sheet Kees de Boekhouder
C12: Totaal uitkering (vroegere) | E12: 0 | AB12: Versie 2.6 november 2023
C13: Ingehouden LH | E13: 0
C14: Bijdrage ZVW | E14: 0
C15: Arbeidskorting | E15: 0
B17: Eigen woning | C17: WOZ waarde | E17: 0
C18: Eigen woning forfait | D18: 0.35% | E18: =+E17*D18 -> 0 | AB18: klad - voor berekeningen, opmerkingen etc.
C19: Betaalde rente hypotheek | E19: 0
C20: Belastbare inkomsten eigen woning | E20: =+E18-E19 -> 0
B22: Berekening IB | E22: Inkomen
C23: Winst | E23: =+E9 -> 0
C24: Loon/uitkering | E24: =+E11+E12 -> 0
C25: Belastbare inkomsten eigen woning | E25: =+E20 -> 0
C26: Inkomen | E26: =+E23+E24+E25 -> 0
C27: Arbeidsinkomen | E27: =+E4+E11 -> 0
C28: LH | E28: =+E13 -> 0
C29: Bijdrage ZVW | E29: =+E14 -> 0
C30: Arbeidskorting | E30: =+E15 -> 0
C32: IB schijf 1 | D32: =Inkomstenbelasting!AD3 -> 36.93% | F32: =+X32 -> (1) | H32: 0 | I32: =Inkomstenbelasting!AC3 -> 37,149 | L32: =IF(E26>I32,I32*D32,E26*D32) -> 0 | X32: =+L32-1 -> 1-
C33: IB schijf 2 | D33: =Inkomstenbelasting!AD4 -> 36.93% | F33: =FLOOR(X33,1) -> 0 | H33: =I32+1 -> 37,150 | I33: =Inkomstenbelasting!AC4 -> 73,031 | J33: =IF($E$26<I33,$E$26-H33,0) -> 37,150- | K33: =+J33*D33 -> 13,719- | L33: =IF($E$26>=I33,(I33-H33)*D33,0) -> 0 | X33: =IF((J33+L33)>0,K33+L33,0) -> 0
C34: IB schijf 3 | D34: =Inkomstenbelasting!AD5 -> 49.50% | F34: =FLOOR(X34,1) -> 0 | H34: =I33+1 -> 73,032 | I34: =Inkomstenbelasting!AC5 -> 0 | J34: =IF($E$26<I34,$E$26-H34,0) -> 0 | K34: =+J34*D34 -> 0 | L34: =IF($E$26>=H34,(E26-H34)*D34,0) -> 0 | X34: =IF((J34+L34)>0,K34+L34,0) -> 0
C36: tariefsaanpassing aftrekposten | F36: =Inkomstenbelasting!G31 -> 0
G38: =SUM(F32:F36) -> (1) | Y38: =+X32+X34+X33+X35 -> 1-
C39: Heffingskortingen
C40: Algemene heffingskorting | F40: ='Algemene heffingskorting'!Q39 -> 3,070
C41: Arbeidskorting | F41: =Arbeidskorting!U47 -> 0
C42: Totale heffingskortingen | G42: =+F40+F41 -> 3,070
C43: Max heffingskorting | G43: ='Totale heffingskortingen'!Q5 -> (1)
C44: Verschuldigde IB en PVV | G44: =G38-G43 -> 0
AC45: VA's | AE45: bedrag VA | AG45: uitkomst incl. VA's
C46: Te betalen/ontvangen IB / PVV | G46: =G44-E28 -> 0 | I46: =IF(E23>0,E23*D47,0) -> 0 | AC46: IB | AE46: 0 | AG46: =G46-AE46 -> 0
C47: Bijdrage ZVW | D47: 5.43% | G47: =IF(E23>K47,I47,I46) -> 0 | H47: 66,956 | I47: =K47*D47 -> 3,635.71 | J47: =H47-E24 -> 66,956 | K47: =IF(J47>0,J47,0) -> 66,956 | AC47: ZVW | AE47: 0 | AG47: =G47-AE47 -> 0
C50: Belastingdruk | D50: =(G46+G47)/E4 -> 

Sheet 2024 emz
B2: 2024
B3: Onderneming
C4: Fiscale Winst | E4: 0
C5: Zelfstandigenaftrek | D5: nee | E5: =IF(AND(D5="ja",D6="nee"),G5,IF(AND(D5="ja",D6="ja"),H5,(IF(D5="nee",0)))) -> 0 | G5: =IF(E4>H5,H5,E4) -> 0 | H5: 3,750 | N5: ja
C6: Startersaftrek ja/nee | D6: nee | E6: =IF(AND(D6="ja",D5="ja"),G6,0) -> 0 | G6: 2,123 | N6: nee
C7: Winst na aftrek | E7: =+E4-E5-E6 -> 0
C8: MKB-vrijstelling | E8: =+E7*F8 -> 0 | F8: 13.31%
C9: Belastbare winst | E9: =+E7-E8 -> 0
B11: Loon | C11: Totaal loon (tegenwoordige) | E11: 0 | AB11: IB Netto sheet Kees de Boekhouder
C12: Totaal uitkering (vroegere) | E12: 0 | AB12: Versie 3.0 September 2024
C13: Ingehouden LH | E13: 0
C14: Bijdrage ZVW | E14: 0
C15: Arbeidskorting | E15: 0
B17: Eigen woning | C17: WOZ waarde | E17: 0 | H17: 0.00%
C18: Eigen woning forfait | D18: =IF(E17<=12500,H17,IF(E17<=25000,H18,IF(E17<=50000,H19,IF(E17<=75000,H20,IF(E17<=1310000,H21,IF(E17>=1310000,H22)))))) -> 0.00% | E18: =FLOOR(K21,1) -> 0 | H18: 0.10% | AB18: klad - voor berekeningen, opmerkingen etc.
C19: Betaalde rente hypotheek | E19: 0 | H19: 0.20%
C20: Belastbare inkomsten eigen woning | E20: =+E18-E19 -> 0 | H20: 0.25% | AC20: What's new?
H21: 0.35% | K21: =IF(E17<=12500,0,IF(E17<=25000,E17*0.001,IF(E17<=50000,E17*0.002,IF(E17<=75000,E17*0.0025,IF(E17<=1310000,E17*0.0035,4585+(E17-1310000)*0.0235))))) -> 0 | AC21: Nieuwe tarieven
B22: Voorzieningen | C22: Bijv. AOV, lijfrente etc. | E22: 0 | H22: special price4U | AC22: Progressief EW-forfait
AC23: Mogelijkheid inkomensvoorziening toe te voegen
B24: Berekening IB | E24: Inkomen
C25: Winst | E25: =+E9 -> 0
C26: Loon/uitkering | E26: =+E11+E12 -> 0
C27: Belastbare inkomsten eigen woning | E27: =+E20 -> 0
C28: Inkomen | E28: =+E25+E26+E27-E22 -> 0
C29: Arbeidsinkomen | E29: =+E4+E11 -> 0
C30: LH | E30: =+E13 -> 0
C31: Bijdrage ZVW | E31: =+E14 -> 0
C32: Arbeidskorting | E32: 0
C34: IB schijf 1 | D34: =Inkomstenbelasting!AI3 -> 36.97% | F34: =+X34 -> (1) | H34: 0 | I34: =Inkomstenbelasting!AH3 -> 38,097 | L34: =IF(E28>I34,I34*D34,E28*D34) -> 0 | X34: =+L34-1 -> 1-
C35: IB schijf 2 | D35: =Inkomstenbelasting!AI4 -> 36.97% | F35: =FLOOR(X35,1) -> 0 | H35: =I34+1 -> 38,098 | I35: =Inkomstenbelasting!AH4 -> 75,517 | J35: =IF($E$28<I35,$E$28-H35,0) -> 38,098- | K35: =+J35*D35 -> 14,085- | L35: =IF($E$28>=I35,(I35-H35)*D35,0) -> 0 | X35: =IF((J35+L35)>0,K35+L35,0) -> 0
C36: IB schijf 3 | D36: =Inkomstenbelasting!AI5 -> 49.50% | F36: =FLOOR(X36,1) -> 0 | H36: =I35+1 -> 75,518 | J36: 0 | K36: 0 | L36: =IF($E$28>=H36,(E28-H36)*D36,0) -> 0 | X36: =IF((J36+L36)>0,K36+L36,0) -> 0
C38: tariefsaanpassing aftrekposten | F38: =FLOOR(H38,1) -> 0 | H38: =Inkomstenbelasting!H31 -> 0
G40: =SUM(F34:F38) -> (1) | Y40: =+X34+X36+X35+X37 -> 1-
C41: Heffingskortingen
C42: Algemene heffingskorting | F42: =CEILING(H42,1) -> 3,362 | H42: ='Algemene heffingskorting'!Q47 -> 3362
C43: Arbeidskorting | F43: =CEILING(H43,1) -> 0 | H43: =Arbeidskorting!U58 -> 0
C44: Totale heffingskortingen | G44: =F42+F43 -> 3,362
C45: Max heffingskorting | G45: ='Totale heffingskortingen'!T5 -> (1)
C46: Verschuldigde IB en PVV | G46: =G40-G45 -> 0
C48: Te betalen/ontvangen IB / PVV | G48: =FLOOR(I48,1) -> 0 | I48: =G46-E30 -> 0 | K48: =IF(E25>0,E25*D49,0) -> 0
C49: Bijdrage ZVW | D49: 5.32% | G49: =FLOOR(I49,1) -> 0 | I49: =IF(E25>M49,K49,K48) -> 0 | J49: 71,628 | K49: =M49*D49 -> 3,810.61 | L49: =J49-E26 -> 71,628 | M49: =IF(L49>0,L49,0) -> 71,628 | AC49: VA's | AD49: bedrag VA | AF49: uitkomst incl. VA's
AC50: IB | AD50: 0 | AF50: =I48-AD50 -> 0
AC51: ZVW | AD51: 0 | AF51: =I49-AD51 -> 0
C52: Belastingdruk | D52: =(I48+I49)/E4 -> 

Sheet 2025 emz
B2: 2025
B3: Onderneming
C4: Fiscale Winst | E4: 0
C5: Zelfstandigenaftrek | D5: nee | E5: =IF(AND(D5="ja",D6="nee"),G5,IF(AND(D5="ja",D6="ja"),H5,(IF(D5="nee",0)))) -> 0 | G5: =IF(E4>H5,H5,E4) -> 0 | H5: 2,470 | N5: ja
C6: Startersaftrek ja/nee | D6: nee | E6: =IF(AND(D6="ja",D5="ja"),G6,0) -> 0 | G6: 2,123 | N6: nee
C7: Winst na aftrek | E7: =+E4-E5-E6 -> 0
C8: MKB-vrijstelling | E8: =CEILING(H8,1) -> 0 | F8: 12.70% | H8: =+E7*F8 -> 0.00
C9: Belastbare winst | E9: =+E7-E8 -> 0
B11: Loon | C11: Totaal loon (tegenwoordige) | E11: 0 | AB11: IB Netto sheet Kees de Boekhouder
C12: Totaal uitkering (vroegere) | E12: 0 | AB12: Versie 4.4 augustus 2025 BETA
C13: Ingehouden LH | E13: 0
AB14: klad - voor berekeningen, opmerkingen etc.
B15: Eigen woning | C15: WOZ waarde | E15: 0 | H15: 0.00%
C16: Eigen woning forfait | D16: =IF(E15<=12500,H15,IF(E15<=25000,H16,IF(E15<=50000,H17,IF(E15<=75000,H18,IF(E15<=1310000,H19,IF(E15>=1310000,H20)))))) -> 0.00% | E16: =FLOOR(K19,1) -> 0 | H16: 0.10% | AC16: What's new in 2025?
C17: Betaalde rente hypotheek | E17: 0 | H17: 0.20% | AC17: Nieuwe tarieven (LET OP: wanneer iemand AOW-gerechtigd is, gelden andere tarieven)
C18: Belastbare inkomsten eigen woning | E18: =+E16-E17+P18 -> 0 | H18: 0.25% | M18: aftrek ivm geen of geringe EW-schuld | P18: =FLOOR(U18,1) -> 0 | S18: =IF(E16>E17,(E16-E17)*0.76667) -> FALSE | T18: 0 | U18: =0-S18+T18 -> 0.00 | AC18: Algemene heffingskorting wordt berekend obv verzamelinkomen Box 1, 2 en 3
H19: 0.35% | K19: =IF(E15<=12500,0,IF(E15<=25000,E15*0.001,IF(E15<=50000,E15*0.002,IF(E15<=75000,E15*0.0025,IF(E15<=1330000,E15*0.0035,4655+(E15-1330000)*0.0235))))) -> 0 | AC19: Aftrek ivm geen of geringe EW-schuld toegevoegd
B20: Voorzieningen | C20: Bijv. AOV, lijfrente etc. | E20: 0 | H20: special price4U | AC20: Berekening belastingdruk tov winst en tov totale inkomen, omdat belastingdruk relatief wordt ervaren
AC21: Arbeidskorting en Bijdrage Zvw hoef je niet meer over te nemen van de jaaropgaven
B22: Berekening IB | E22: Inkomen | AC22: Verzamelinkomen kan gebruikt worden voor DUO, Woningnet etc.
C23: Winst | E23: =+E9 -> 0
C24: Loon/uitkering | E24: =+E11+E12 -> 0 | AC24: BETA
C25: Belastbare inkomsten eigen woning | E25: =+E18 -> 0
C26: Inkomen | E26: =+E23+E24+E25-E20 -> 0
C27: Arbeidsinkomen | E27: =+E4+E11 -> 0
C28: LH | E28: =+E13 -> 0
C30: IB schijf 1 | D30: =Inkomstenbelasting!AN3 -> 35.82% | F30: =+X30 -> (1) | H30: 0 | I30: =Inkomstenbelasting!AM3 -> 38,440 | L30: =IF(E26>I30,I30*D30,E26*D30) -> 0 | X30: =+L30-1 -> 1.00-
C31: IB schijf 2 | D31: =Inkomstenbelasting!AN4 -> 37.48% | F31: =+X31 -> 0 | H31: =I30+1 -> 38,441 | I31: =Inkomstenbelasting!AM4 -> 76,816 | J31: =IF($E$26<I31,$E$26-H31,0) -> 38,441- | K31: =+J31*D31 -> 14,408- | L31: =IF($E$26>=I31,(I31-H31)*D31,0) -> 0 | X31: =IF((J31+L31)>0,K31+L31,0) -> 0
C32: IB schijf 3 | D32: =Inkomstenbelasting!AN5 -> 49.50% | F32: 0 | H32: =I31+1 -> 76,817 | J32: 0 | K32: 0 | L32: =IF($E$26>=H32,(E26-H32)*D32,0) -> 0 | X32: =IF((J32+L32)>0,K32+L32,0) -> 0
C34: tariefsaanpassing aftrekposten | F34: =FLOOR(H34,1) -> 0 | H34: =Inkomstenbelasting!I31 -> 0
G36: =SUM(F30:F34) -> (1) | Y36: =+X30+X32+X31+X33 -> 1-
C37: Heffingskortingen
C38: Algemene heffingskorting | F38: =CEILING(H38,1) -> 3,068 | H38: ='Algemene heffingskorting'!Q55 -> 3068
C39: Arbeidskorting | F39: =CEILING(H39,1) -> 0 | H39: =Arbeidskorting!U69 -> 0
C40: Totale heffingskortingen | G40: =F38+F39 -> 3,068
C41: Max heffingskorting | G41: ='Totale heffingskortingen'!W5 -> (1)
C42: Verschuldigde IB en PVV | G42: =G36-G41 -> 0
C44: Te betalen/ontvangen IB / PVV | G44: =FLOOR(I44,1) -> 0 | I44: =G42-E28+F53+F54-G53-G54 -> 0 | K44: =IF(E23>0,E23*D45,0) -> 0
C45: Bijdrage ZVW | D45: 5.26% | G45: =FLOOR(I45,1) -> 0 | I45: =IF(E23>M45,K45,K44) -> 0 | J45: 75,864 | K45: =M45*D45 -> 3,990.45 | L45: =J45-E24 -> 75,864 | M45: =IF(L45>0,L45,0) -> 75,864
C48: Belastingdruk
C49: tov winst | D49: =(I44+I45)/E4 -> 
C50: tov totale inkomen | D50: =(G42+I45)/(E4+E11+E12+E53+E54) -> 
E52: inkomen | F52: belasting | G52: betaald | AC52: VA's | AD52: bedrag VA | AF52: uitkomst incl. VA's
B53: EXTRA (BETA) | C53: Reguliere voordelen Box 2 | E53: 0 | F53: =FLOOR(Inkomstenbelasting!F58,1) -> 0 | G53: 0 | AC53: IB | AD53: 0 | AF53: =I44-AD53 -> 0
C54: Rendement Box 3 | E54: 0 | F54: =FLOOR(Inkomstenbelasting!C64,1) -> 0 | G54: 0 | AC54: ZVW | AD54: 0 | AF54: =I45-AD54 -> 0
C55: Verzamelinkomen | E55: ='Algemene heffingskorting'!K51 -> 0

Sheet Inkomstenbelasting (hidden)
B1: 2018 | G1: 2019 | L1: 2020 | Q1: 2021 | V1: 2022 | AA1: 2023 | AF1: 2024 | AK1: 2025
B3: Schijf 1 | C3: 0 | D3: 20,142 | E3: 36.55% | G3: =B3 -> Schijf 1 | H3: 0 | I3: 20,384 | J3: 36.65% | L3: =G3 -> Schijf 1 | M3: 0 | N3: 20,751 | O3: 37.35% | Q3: =L3 -> Schijf 1 | R3: 0 | S3: 21,167 | T3: 37.10% | V3: Schijf 1 | W3: 0 | X3: 35,472 | Y3: 37.07% | AA3: Schijf 1 | AB3: 0 | AC3: 37,149 | AD3: 36.93% | AF3: Schijf 1 | AG3: 0 | AH3: 38,097 | AI3: 36.97% | AK3: Schijf 1 | AL3: 0 | AM3: 38,440 | AN3: 35.82%
B4: Schijf 2 | C4: =D3+1 -> 20,143 | D4: 33,944 | E4: 40.85% | G4: =B4 -> Schijf 2 | H4: =I3+1 -> 20,385 | I4: 34,300 | J4: 38.10% | L4: =G4 -> Schijf 2 | M4: =N3+1 -> 20,752 | N4: 34,764 | O4: 37.35% | Q4: =L4 -> Schijf 2 | R4: =S3+1 -> 21,168 | S4: 35,286 | T4: =T3 -> 37.10% | V4: Schijf 2 | W4: =X3+1 -> 35,473 | X4: 69,398 | Y4: 37.07% | AA4: Schijf 2 | AB4: =AC3+1 -> 37,150 | AC4: 73,031 | AD4: 36.93% | AF4: Schijf 2 | AG4: =AH3+1 -> 38,098 | AH4: 75,517 | AI4: 36.97% | AK4: Schijf 2 | AL4: =AM3+1 -> 38,441 | AM4: 76,816 | AN4: 37.48%
B5: Schijf 3 | C5: =D4+1 -> 33,945 | D5: 68,507 | E5: 40.85% | G5: =B5 -> Schijf 3 | H5: =I4+1 -> 34,301 | I5: 68,507 | J5: =J4 -> 38.10% | L5: =G5 -> Schijf 3 | M5: =N4+1 -> 34,765 | N5: 68,507 | O5: 37.35% | Q5: =L5 -> Schijf 3 | R5: =S4+1 -> 35,287 | S5: 68,507 | T5: =T4 -> 37.10% | V5: Schijf 3 | W5: =X4+1 -> 69,399 | Y5: 49.50% | AA5: Schijf 3 | AB5: =AC4+1 -> 73,032 | AD5: 49.50% | AF5: Schijf 3 | AG5: =AH4+1 -> 75,518 | AI5: 49.50% | AK5: Schijf 3 | AL5: =AM4+1 -> 76,817 | AN5: 49.50%
B6: Schijf 4 | C6: =D5+1 -> 68,508 | E6: 51.95% | G6: =B6 -> Schijf 4 | H6: =I5+1 -> 68,508 | J6: 51.75% | L6: =G6 -> Schijf 4 | M6: =N5+1 -> 68,508 | O6: 49.50% | Q6: =L6 -> Schijf 4 | R6: =S5+1 -> 68,508 | T6: 49.50% | V6: Schijf 4 | AA6: Schijf 4 | AF6: Schijf 4 | AK6: Schijf 4
A13: EMZ
A14: Aftrekbeperking aftrekposten | B14: 2018 | C14: 2019 | D14: 2020 | E14: 2021 | F14: 2022 | G14: 2023 | H14: 2024 | I14: 2025
A15: Eigen woning | B15: 49.5% | C15: 49.0% | D15: 46.0% | E15: 43.0% | F15: 40.0% | G15: 36.93% | H15: 36.97% | I15: 37.48%
A16: Overige aftrekposten | B16: 51.95% | C16: 51.75% | D16: =D15 -> 46.0% | E16: =E15 -> 43.0% | F16: =F15 -> 40.0% | G16: =G15 -> 36.93% | H16: =H15 -> 36.97% | I16: 37.48%
A17: Toptarief | B17: =+E6 -> 51.95% | C17: =+J6 -> 51.75% | D17: 49.50% | E17: =T6 -> 49.50% | F17: =+E17 -> 49.50% | G17: =+F17 -> 49.50% | H17: =+G17 -> 49.50% | I17: 49.50%
B20: =+B14 -> 2018 | C20: 2019 | D20: 2020 | E20: 2021 | F20: 2022 | G20: 2023 | H20: =+H14 -> 2024 | I20: 2025
A21: Grens | B21: =+C6 -> 68,508 | C21: =+B21 -> 68,508 | D21: =+C21 -> 68,508 | E21: =+D21 -> 68,508 | F21: 69,398 | G21: =AB5 -> 73,032 | H21: =AG5 -> 75,518 | I21: =AL5 -> 76,817
A22: Belastbaar inkomen voor aftrek | B22: ='2018 emz'!D21+'2018 emz'!D22+'2018 emz'!D16 -> 0 | C22: ='2019 emz'!D21+'2019 emz'!D22+'2019 emz'!D16 -> 0 | D22: ='2020 emz'!D21+'2020 emz'!D22+'2020 emz'!D16 -> 0 | E22: ='2021 emz'!D21+'2021 emz'!D22+'2021 emz'!D16 -> 0 | F22: ='2022 emz'!E4+'2022 emz'!E24+'2022 emz'!E18 -> 0 | G22: ='2023 emz'!E4+'2023 emz'!E24+'2023 emz'!E18 -> 0 | H22: ='2024 emz'!E4+'2024 emz'!E26+'2024 emz'!E18-'2024 emz'!E22 -> 0 | I22: ='2025 emz'!E4+'2025 emz'!E24+'2025 emz'!E16-'2025 emz'!E20 -> 0
A23: Bedrag boven grens | B23: =IF(B22>B21,B22-B21,0) -> 0 | C23: 0 | D23: 0 | E23: 0 | F23: 0 | G23: 0 | H23: 0 | I23: 0
A24: Aftrekbeperking | B24: =IF(B23>0,"Ja","Nee") -> Nee | C24: Nee | D24: Nee | E24: Nee | F24: Nee | G24: Nee | H24: Nee | I24: Nee
A25: Aftrek eigen woning | B25: ='2018 emz'!D17 -> 0 | C25: ='2019 emz'!D17 -> 0 | D25: ='2020 emz'!D17 -> 0 | E25: ='2021 emz'!D17 -> 0
A26: % beperking EW | B26: =+B17-B15 -> 2.45% | C26: 2.75% | D26: 3.50% | E26: 6.50% | F26: 9.50% | G26: =+G17-G15 -> 12.57% | H26: =+H17-H15 -> 12.53% | I26: =+I17-I15 -> 12.02%
A27: Bedrag beperking EW | B27: =IF(B25>B23,B23*B26,B25*B26) -> 0 | C27: 0 | D27: 0 | E27: 0 | F27: 0 | G27: 0 | H27: 0 | I27: =IF(I25>I23,I23*I26,I25*I26) -> 0
A28: % beperking overige aftrekposten | B28: =+B17-B16 -> 0.00% | C28: 0.00% | D28: 3.50% | E28: 6.50% | F28: 9.50% | G28: 12.57% | H28: =+H17-H16 -> 12.53% | I28: =+I17-I16 -> 12.02%
A29: Aftrekposten | D29: ='2020 emz'!D4+'2020 emz'!D5+'2020 emz'!D7 -> 0 | E29: ='2021 emz'!D4+'2021 emz'!D5+'2021 emz'!D7 -> 0 | F29: ='2022 emz'!E5+'2022 emz'!E6+'2022 emz'!E8+'2022 emz'!E19 -> 0 | G29: ='2023 emz'!E5+'2023 emz'!E6+'2023 emz'!E8+'2023 emz'!E19 -> 0 | H29: ='2024 emz'!E5+'2024 emz'!E6+'2024 emz'!E8+'2024 emz'!E19 -> 0 | I29: ='2025 emz'!E5+'2025 emz'!E6+'2025 emz'!E8+'2025 emz'!E17 -> 0
A30: Ruimte | D30: =IF(D29<D23,D23-D29,0) -> 0 | E30: =IF(E29<E23,E23-E29,0) -> 0
A31: Bedrag beperking overige aftrekposten | B31: 0 | C31: 0 | D31: =IF(D29<D30,D29*D28,D30*D28) -> 0 | E31: =IF(E29<E30,E29*E28,E30*E28) -> 0 | F31: =IF(F29>F23,F23*F28,F29*F28) -> 0 | G31: =IF(G29>G23,G23*G28,G29*G28) -> 0 | H31: =IF(H29>H23,H23*H28,H29*H28) -> 0 | I31: =IF(I29>I23,I23*I28,I29*I28) -> 0
A35: BV
A36: Aftrekbeperking aftrekposten | B36: 2018 | C36: 2019 | D36: 2020 | E36: 2021 | F36: 2022 | G36: 2023 | H36: 2024 | I36: 2025
A37: Eigen woning | B37: =+B15 -> 49.5% | C37: 49.0% | D37: 46.0% | E37: 43.0% | F37: 40.0% | G37: 36.93% | H37: =+H15 -> 36.97% | I37: 37.48%
A38: Overige aftrekposten | B38: 52.0% | C38: 51.8% | D38: 46.0% | E38: 43.0% | F38: 40.0% | G38: 36.93% | H38: 36.97% | I38: 37.48%
A39: Toptarief | B39: 52.0% | C39: 51.8% | D39: 49.5% | E39: 49.5% | F39: 49.5% | G39: 49.50% | H39: 49.50% | I39: 49.50%
B42: =+B36 -> 2018 | C42: 2019 | D42: 2020 | E42: 2021 | F42: 2022 | G42: 2023 | H42: 2024 | I42: 2025
A43: Grens | B43: =+B21 -> 68,508 | C43: 68,508 | D43: 68,508 | E43: 68,508 | F43: 69,398 | G43: 73,032 | H43: =+H21 -> 75,518 | I43: =+I21 -> 76,817
A44: Belastbaar inkomen voor aftrek | B44: =#REF!+#REF!+#REF! ->  | C44: =#REF!+#REF!+#REF! -> 
A45: Bedrag boven grens | B45: =IF(B44>B43,B44-B43,0) ->  | D45: 0 | E45: 0 | F45: 0 | G45: 0 | H45: 0 | I45: 0
A46: Aftrekbeperking | B46: =IF(B45>0,"Ja","Nee") ->  | D46: Nee | E46: Nee | F46: Nee | G46: Nee | H46: Nee | I46: Nee
A47: Aftrek eigen woning | B47: =#REF! ->  | C47: =#REF! -> 
A48: % beperking EW | B48: =+B39-B37 -> 2.45% | C48: 2.75% | D48: 3.50% | E48: 6.50% | F48: 9.50% | G48: 12.57% | H48: =+H39-H37 -> 12.53% | I48: =+I39-I37 -> 12.02%
A49: Bedrag beperking EW | B49: =IF(B47>B45,B45*B48,B47*B48) ->  | D49: 0 | E49: 0 | F49: 0 | G49: 0 | H49: 0 | I49: =IF(I47>I45,I45*I48,I47*I48) -> 0
A50: % beperking overige aftrekposten | B50: =+B39-B38 -> 0.00% | C50: 0.00% | D50: 3.50% | E50: 6.50% | F50: 9.50% | G50: 12.57% | H50: =+H39-H38 -> 12.53% | I50: =+I39-I38 -> 12.02%
A51: Bedrag beperking overige aftrekposten | B51: 0 | C51: 0
A54: Box 2 | B54: 2025
A55: inkomen | B55: ='2025 emz'!E53 -> 0
A56: Schijf 1 | B56: 0 | C56: 67,803 | D56: 24.50% | E56: =IF(B55>C56,C56*D56,B55*D56) -> 0
A57: Schijf 2 | B57: =C56+1 -> 67,804 | D57: 31.00% | E57: =IF($B$55>=B57,(B55-B57)*D57,0) -> 0
A58: Totaal Box 2 belasting | F58: =E56+E57 -> 0
A61: Box 3 | B61: 2025
A62: Inkomen | B62: ='2025 emz'!E54 -> 0
A63: Tarief | B63: 36%
A64: Totaal box 3 belasting | C64: =B62*B63 -> 0

Sheet Arbeidskorting (hidden)
B1: 2,018 | L1: 2019
A2: Arbeidsinkomen | B2: ='2018 emz'!D25 -> 0 | L2: Arbeidsinkomen | M2: ='2019 emz'!D25 -> 0
B3: 0 | C3: 9,468 | D3: 1.764% | E3: =IF(B2>=C3,167,B2*D3) -> 0 | H3: =IF(B2>C3,0,E3) -> 0 | M3: 0 | N3: 9,458 | O3: 3.330% | P3: =IF(M2>=N3,315,M2*O3) -> 0 | S3: =IF(M2>N3,0,P3) -> 0
B4: =C3 -> 9,468 | C4: 20,450 | D4: 28.064% | E4: =((B2-B4)*D4)+E3 -> (2,657) | F4: =IF(B2>=C4,3249,E4) -> (2,657) | G4: =IF(B2<=C3,0,E4) -> 0 | H4: =IF(B2>C4,0,G4) -> 0 | M4: =N3 -> 9,458 | N4: 20,450 | O4: 28.290% | P4: =((M2-M4)*O4)+P3 -> (2,676) | Q4: =IF(M2>=N4,3399,P4) -> (2,676) | R4: =IF(M2<=N3,0,P4) -> 0 | S4: =IF(M2>N4,0,R4) -> 0
B5: =C4 -> 20,450 | C5: 33,112 | D5: 3,249.00 | E5: =IF(B2>B5,D5,0) -> 0 | H5: =IF(B2>C5,0,E5) -> 0 | M5: =N4 -> 20,450 | N5: 34,060 | O5: 3,399.00 | P5: =IF(M2>M5,O5,0) -> 0 | S5: =IF(M2>N5,0,P5) -> 0
B6: =C5 -> 33,112 | C6: 123,362 | D6: 3,249.00 | E6: 3.60% | F6: =F4-((B2-B6)*E6) -> (1,465) | G6: =IF(B2>B6,F6,0) -> 0 | H6: =IF(B2>C6,0,G6) -> 0 | M6: =N5 -> 34,060 | N6: 90,000 | O6: =O5 -> 3,399.00 | P6: 6.00% | Q6: =Q4-((M2-M6)*P6) -> (632) | R6: =IF(M2>M6,Q6,0) -> 0 | S6: =IF(M2>N6,0,R6) -> 0
H8: =SUM(H3:H7) -> 0 | S8: =SUM(S3:S7) -> 0
A11: Arbeidsinkomen | B11: =#REF! ->  | L11: Arbeidsinkomen | M11: =#REF! -> 
B12: 0 | C12: 9,468 | D12: 1.764% | E12: =IF(B11>=C12,167,B11*D12) ->  | H12: =IF(B11>C12,0,E12) ->  | M12: =M3 -> 0 | N12: =N3 -> 9,458 | O12: =O3 -> 3.330% | P12: =IF(M11>=N12,315,M11*O12) ->  | S12: =IF(M11>N12,0,P12) -> 
B13: =C12 -> 9,468 | C13: 20,450 | D13: 28.064% | E13: =((B11-B13)*D13)+E12 ->  | F13: =IF(B11>=C13,3249,E13) ->  | G13: =IF(B11<=C12,0,E13) ->  | H13: =IF(B11>C13,0,G13) ->  | M13: =M4 -> 9,458 | N13: 20,450 | O13: 28.290% | P13: =((M11-M13)*O13)+P12 ->  | Q13: =IF(M11>=N13,3399,P13) ->  | R13: =IF(M11<=N12,0,P13) ->  | S13: =IF(M11>N13,0,R13) -> 
B14: =C13 -> 20,450 | C14: 33,112 | D14: 3,249.00 | E14: =IF(B11>B14,D14,0) ->  | H14: =IF(B11>C14,0,E14) ->  | M14: 20,450 | N14: 34,060 | O14: 3,399 | P14: =IF(M11>M14,O14,0) ->  | S14: =IF(M11>N14,0,P14) -> 
B15: =C14 -> 33,112 | C15: 123,362 | D15: 3,249.00 | E15: 3.60% | F15: =F13-((B11-B15)*E15) ->  | G15: =IF(B11>B15,F15,0) ->  | H15: =IF(B11>C15,0,G15) ->  | M15: 34,060 | N15: 90,000 | O15: 3,399 | P15: =P6 -> 6.00% | Q15: =Q13-((M11-M15)*P15) ->  | R15: =IF(M11>M15,Q15,0) ->  | S15: =IF(M11>N15,0,R15) -> 
H17: =SUM(H12:H16) ->  | S17: =SUM(S12:S16) -> 
A22: 2020 | L22: 2021
A23: Arbeidsinkomen | B23: ='2020 emz'!D25 -> 0 | L23: Arbeidsinkomen | M23: ='2021 emz'!D25 -> 0
B24: 0 | C24: 9,921 | D24: 2.812% | E24: =IF(B23>=C24,279,B23*D24) -> 0 | J24: =IF(B23>C24,0,E24) -> 0 | M24: 0 | N24: 10,108 | O24: 4.581% | P24: =IF(M23>=N24,463,M23*O24) -> 0 | U24: =IF(M23>N24,0,P24) -> 0
B25: =C24 -> 9,921 | C25: 21,430 | D25: 28.812% | E25: =((B23-B25)*D25)+E24 -> (2,858) | F25: =IF(B23>=C25,3819,E25) -> (2,858) | G25: =IF(B23<=C24,0,E25) -> 0 | J25: =IF(B23>C25,0,G25) -> 0 | M25: =N24 -> 10,108 | N25: 21,835 | O25: 28.771% | P25: =((M23-M25)*O25)+P24 -> (2,908) | Q25: =IF(M23>=N25,4205,P25) -> (2,908) | R25: =IF(M23<=N24,0,P25) -> 0 | U25: =IF(M23>N25,0,R25) -> 0
B26: =C25 -> 21,430 | C26: 34,954 | D26: 3,595 | E26: =IF(B23>B26,D26,0) -> 0 | F26: 1.656% | G26: =(B23-B26)*F26 -> (355) | H26: =E26+G26 -> (355) | I26: =AND(B23>=B26,B23<=C26) -> FALSE | J26: =IF(I26=TRUE,H26,0) -> 0 | M26: =N25 -> 21,835 | N26: 35,652 | O26: 3,837 | P26: =IF(M23>M26,O26,0) -> 0 | Q26: 2.663% | R26: =(M23-M26)*Q26 -> (581) | S26: =P26+R26 -> (581) | T26: =AND(M23>=M26,M23<=N26) -> FALSE | U26: =IF(T26=TRUE,S26,0) -> 0
B27: =C26 -> 34,954 | C27: 98,604 | D27: =D26 -> 3,595 | E27: 6.000% | F27: =F25-((B23-B27)*E27) -> (761) | G27: =IF(B23>B27,F27,0) -> 0 | J27: =IF(B23>C27,0,G27) -> 0 | M27: =N26 -> 35,652 | N27: 105,736 | O27: =O26 -> 3,837 | P27: 6.000% | Q27: =Q25-((M23-M27)*P27) -> (769) | R27: =IF(M23>M27,Q27,0) -> 0 | U27: =IF(M23>N27,0,R27) -> 0
J29: =SUM(J24:J28) -> 0 | U29: =SUM(U24:U28) -> 0
A32: Arbeidsinkomen | B32: =B23 -> 0 | L32: Arbeidsinkomen | M32: 0
B33: =B24 -> 0 | C33: =C24 -> 9,921 | D33: 2.812% | E33: =IF(B32>=C33,315,B32*D33) -> 0 | H33: =IF(B32>C33,0,E33) -> 0 | M33: =M24 -> 0 | N33: 10,108 | O33: 4.581% | P33: =IF(M32>=N33,315,M32*O33) -> 0 | S33: =IF(M32>N33,0,P33) -> 0
B34: =B25 -> 9,921 | C34: 21,430 | D34: 28.812% | E34: =((B32-B34)*D34)+E33 -> (2,858) | F34: =IF(B32>=C34,3706,E34) -> (2,858) | G34: =IF(B32<=C33,0,E34) -> 0 | H34: =IF(B32>C34,0,G34) -> 0 | M34: 10,108 | N34: 21,835 | O34: 28.771% | P34: =((M32-M34)*O34)+P33 -> (2,908) | Q34: =IF(M32>=N34,3399,P34) -> (2,908) | R34: =IF(M32<=N33,0,P34) -> 0 | S34: =IF(M32>N34,0,R34) -> 0
B35: =B26 -> 21,430 | C35: 34,954 | D35: 3,595 | E35: =IF(B32>B35,D35,0) -> 0 | H35: =IF(B32>C35,0,E35) -> 0 | M35: 21,835 | N35: 35,652 | O35: 3,837 | P35: =IF(M32>M35,O35,0) -> 0 | S35: =IF(M32>N35,0,P35) -> 0
B36: =B27 -> 34,954 | C36: 98,604 | D36: 3,595 | E36: =E27 -> 6.00% | F36: =F34-((B32-B36)*E36) -> (761) | G36: =IF(B32>B36,F36,0) -> 0 | H36: =IF(B32>C36,0,G36) -> 0 | M36: 35,652 | N36: 105,736 | O36: 3,837 | P36: =P27 -> 6.00% | Q36: =Q34-((M32-M36)*P36) -> (769) | R36: =IF(M32>M36,Q36,0) -> 0 | S36: =IF(M32>N36,0,R36) -> 0
A38: 2022 | H38: =SUM(H33:H37) -> 0 | S38: =SUM(S33:S37) -> 0
A39: Arbeidsinkomen | B39: ='2022 emz'!E27 -> 0
B40: 0 | C40: 10350 | D40: 4.541% | E40: =IF(B39>=C40,470,B39*D40) -> 0 | J40: =IF(B39>C40,0,E40) -> 0 | L40: 2023 | S40: =SUM(S35:S39) -> 0
B41: =C40+1 -> 10,351 | C41: 22,357 | D41: 28.461% | E41: =((B39-B41)*D41)+E40 -> (2,946) | F41: =IF(B39>=C41,4260,E41) -> (2,946) | G41: =IF(B39<=C40,0,E41) -> 0 | J41: =IF(B39>C41,0,G41) -> 0 | L41: Arbeidsinkomen | M41: ='2023 emz'!E27 -> 0
B42: =C41+1 -> 22,358 | C42: 36,650 | D42: 3,887 | E42: =IF(B39>B42,D42,0) -> 0 | F42: 2.610% | G42: =(B39-B42)*F42 -> (584) | H42: =E42+G42 -> (584) | I42: =AND(B39>=B42,B39<=C42) -> FALSE | J42: =IF(I42=TRUE,H42,0) -> 0 | M42: 0 | N42: 10740 | O42: 8.231% | P42: =IF(M41>=N42,884,M41*O42) -> 0 | U42: =IF(M41>N42,0,P42) -> 0
B43: =C42+1 -> 36,651 | C43: 109,347 | D43: 4,260 | E43: 5.860% | F43: =F41-((B39-B43)*E43) -> (798) | G43: =IF(B39>B43,F43,0) -> 0 | J43: =IF(B39>C43,0,G43) -> 0 | M43: =N42+1 -> 10,741 | N43: 23,200 | O43: 29.861% | P43: =((M41-M43)*O43)+P42 -> (3,207) | Q43: =IF(M41>=N43,5052,P43) -> (3,207) | R43: =IF(M41<=N42,0,P43) -> 0 | U43: =IF(M41>N43,0,R43) -> 0
M44: =N43+1 -> 23,201 | N44: 37,691 | O44: 4,605 | P44: =IF(M41>M44,O44,0) -> 0 | Q44: 3.085% | R44: =(M41-M44)*Q44 -> (716) | S44: =P44+R44 -> (716) | T44: =AND(M41>=M44,M41<=N44) -> FALSE | U44: =IF(T44=TRUE,S44,0) -> 0
J45: =SUM(J40:J44) -> 0 | M45: =N44+1 -> 37,692 | N45: 115,295 | O45: 5,052 | P45: 6.510% | Q45: =Q43-((M41-M45)*P45) -> (754) | R45: =IF(M41>=M45,Q45,0) -> 0 | U45: =IF(M41>N45,0,R45) -> 0
U47: =SUM(U42:U46) -> 0
L51: 2024 | S51: =SUM(S46:S50) -> 0
L52: Arbeidsinkomen | M52: ='2024 emz'!E29 -> 0
M53: 0 | N53: 11490 | O53: 8.425% | P53: =IF(M52>=N53,968,M52*O53) -> 0 | U53: =IF(M52>N53,0,P53) -> 0
M54: =N53+1 -> 11,491 | N54: 24,820 | O54: 31.433% | P54: =((M52-M54)*O54)+P53 -> (3,612) | Q54: =IF(M52>=N54,5532,P54) -> (3,612) | R54: =IF(M52<=N53,0,P54) -> 0 | U54: =IF(M52>N54,0,R54) -> 0
M55: =N54+1 -> 24,821 | N55: 39,958 | O55: 5,158 | P55: =IF(M52>M55,O55,0) -> 0 | Q55: 2.471% | R55: =(M52-M55)*Q55 -> (613) | S55: =P55+R55 -> (613) | T55: =AND(M52>=M55,M52<=N55) -> FALSE | U55: =IF(T55=TRUE,S55,0) -> 0
M56: =N55+1 -> 39,959 | N56: 124,935 | O56: 5,532 | P56: 6.510% | Q56: =Q54-((M52-M56)*P56) -> (1,011) | R56: =IF(M52>=M56,Q56,0) -> 0 | U56: =IF(M52>N56,0,R56) -> 0
U58: =SUM(U53:U57) -> 0
L62: 2025 | S62: =SUM(S57:S61) -> 0
L63: Arbeidsinkomen | M63: ='2025 emz'!E27 -> 0
M64: 0 | N64: 12168 | O64: 8.053% | P64: =IF(M63>=N64,980,M63*O64) -> 0 | U64: =IF(M63>N64,0,P64) -> 0
M65: =N64+1 -> 12,169 | N65: 26,287 | O65: 30.030% | P65: =((M63-M65)*O65)+P64 -> (3,654) | Q65: =IF(M63>=N65,5599,P65) -> (3,654) | R65: =IF(M63<=N64,0,P65) -> 0 | U65: =IF(M63>N65,0,R65) -> 0
M66: =N65+1 -> 26,288 | N66: 43,071 | O66: 5,220 | P66: =IF(M63>M66,O66,0) -> 0 | Q66: 2.258% | R66: =(M63-M66)*Q66 -> (594) | S66: =P66+R66 -> (594) | T66: =AND(M63>=M66,M63<=N66) -> FALSE | U66: =IF(T66=TRUE,S66,0) -> 0
M67: =N66+1 -> 43,072 | N67: 129,078 | O67: 5,599 | P67: 6.510% | Q67: =Q65-((M63-M67)*P67) -> (850) | R67: =IF(M63>=M67,Q67,0) -> 0 | U67: =IF(M63>N67,0,R67) -> 0
U69: =SUM(U64:U68) -> 0

Sheet Algemene heffingskorting (hidden)
A1: 2018 | J1: 2019
A2: Inkomen box 1 | B2: ='2018 emz'!D24 -> 0 | J2: Inkomen box 1 | K2: ='2019 emz'!D24 -> 0
B4: 0 | C4: 20,142 | D4: 2265 | H4: =IF(B2<C4,D4,0) -> 2,265 | K4: 0 | L4: =Inkomstenbelasting!I3 -> 20,384 | M4: 2,477 | Q4: =IF(K2<L4,M4,0) -> 2,477
B5: =C4 -> 20,142 | C5: 68,507 | D5: 4.683% | E5: =D4-((B2-B5)*D5) -> 3,208 | F5: =IF(B2>=B5,E5,0) -> 0 | G5: =IF(B2>C5,0,F5) -> 0 | H5: =IF(B2<B5,0,G5) -> 0 | K5: =L4 -> 20,384 | L5: =Inkomstenbelasting!I5 -> 68,507 | M5: 5.147% | N5: =M4-((K2-K5)*M5) -> 3,526 | O5: =IF(K2>=K5,N5,0) -> 0 | P5: =IF(K2>L5,0,O5) -> 0 | Q5: =IF(K2<K5,0,P5) -> 0
H6: =SUM(H4:H5) -> 2,265 | Q6: =SUM(Q4:Q5) -> 2,477
A10: Inkomen box 1 | B10: =#REF! ->  | J10: Inkomen box 1 | K10: =#REF! -> 
B12: 0 | C12: 20,142 | D12: 2265 | H12: =IF(B10<C12,D12,0) ->  | K12: =K4 -> 0 | L12: =L4 -> 20,384 | M12: =M4 -> 2477 | Q12: =IF(K10<L12,M12,0) -> 
B13: =C12 -> 20,142 | C13: 68,507 | D13: 4.683% | E13: =D12-((B10-B13)*D13) ->  | F13: =IF(B10>=B13,E13,0) ->  | G13: =IF(B10>C13,0,F13) ->  | H13: =IF(B10<B13,0,G13) ->  | K13: =K5 -> 20,384 | L13: =L5 -> 68,507 | M13: 5.147% | N13: =M12-((K10-K13)*M13) ->  | O13: =IF(K10>=K13,N13,0) ->  | P13: =IF(K10>L13,0,O13) ->  | Q13: =IF(K10<K13,0,P13) -> 
H14: =SUM(H12:H13) ->  | Q14: =SUM(Q12:Q13) -> 
A19: 2020 | J19: 2021
A20: Inkomen box 1 | B20: ='2020 emz'!D24 -> 0 | J20: Inkomen box 1 | K20: ='2021 emz'!D24 -> 0
B22: 0 | C22: 20,711 | D22: 2,711 | H22: =IF(B20<C22,D22,0) -> 2,711 | K22: 0 | L22: 21,043 | M22: 2,837 | Q22: =IF(K20<L22,M22,0) -> 2,837
B23: =C22 -> 20,711 | C23: =Inkomstenbelasting!N5 -> 68,507 | D23: 5.672% | E23: =D22-((B20-B23)*D23) -> 3,886 | F23: =IF(B20>=B23,E23,0) -> 0 | G23: =IF(B20>C23,0,F23) -> 0 | H23: =IF(B20<B23,0,G23) -> 0 | K23: =L22 -> 21,043 | L23: 68,507 | M23: 5.977% | N23: =M22-((K20-K23)*M23) -> 4,095 | O23: =IF(K20>=K23,N23,0) -> 0 | P23: =IF(K20>L23,0,O23) -> 0 | Q23: =IF(K20<K23,0,P23) -> 0
H24: =SUM(H22:H23) -> 2,711 | Q24: =SUM(Q22:Q23) -> 2,837
A28: Inkomen box 1 | B28: =#REF! ->  | J28: Inkomen box 1 | K28: 0
B30: =B22 -> 0 | C30: 20,711 | D30: 2711 | H30: =IF(B28<C30,D30,0) ->  | K30: =K22 -> 0 | L30: =L22 -> 21,043 | M30: =M22 -> 2837 | Q30: =IF(K28<L30,M30,0) -> 2,837
B31: 20,711 | C31: 68,507 | D31: 5.672% | E31: =D30-((B28-B31)*D31) ->  | F31: =IF(B28>=B31,E31,0) ->  | G31: =IF(B28>C31,0,F31) ->  | H31: =IF(B28<B31,0,G31) ->  | K31: =K23 -> 21,043 | L31: =L23 -> 68,507 | M31: 5.147% | N31: =M30-((K28-K31)*M31) -> 3,920 | O31: =IF(K28>=K31,N31,0) -> 0 | P31: =IF(K28>L31,0,O31) -> 0 | Q31: =IF(K28<K31,0,P31) -> 0
H32: =SUM(H30:H31) ->  | Q32: =SUM(Q30:Q31) -> 2,837
A34: 2022 | J34: 2023
A35: Inkomen box 1 | B35: ='2022 emz'!E26 -> 0 | J35: Inkomen box 1 | K35: ='2023 emz'!E26 -> 0
B37: 0 | C37: 21,317 | D37: 2,888 | H37: =IF(B35<C37,D37,0) -> 2,888 | K37: 0 | L37: 22,660 | M37: 3,070 | Q37: =IF(K35<L37,M37,0) -> 3,070
B38: =C37+1 -> 21,318 | C38: 69,398 | D38: 6.007% | E38: =D37-((B35-C37)*D38) -> 4,169 | F38: =IF(B35>=B38,E38,0) -> 0 | G38: =IF(B35>C38,0,F38) -> 0 | H38: =IF(B35<B38,0,G38) -> 0 | K38: =L37+1 -> 22,661 | L38: 73,031 | M38: 6.094% | N38: =M37-((K35-L37)*M38) -> 4,451 | O38: =IF(K35>=K38,N38,0) -> 0 | P38: =IF(K35>L38,0,O38) -> 0 | Q38: =IF(K35<K38,0,P38) -> 0
H39: =SUM(H37:H38) -> 2,888 | Q39: =SUM(Q37:Q38) -> 3,070
J42: 2024
J43: Inkomen box 1 | K43: ='2024 emz'!E28 -> 0
K45: 0 | L45: 24,812 | M45: 3,362 | Q45: =IF(K43<L45,M45,0) -> 3,362
K46: =L45+1 -> 24,813 | L46: 75,518 | M46: 6.630% | N46: =M45-((K43-L45)*M46) -> 5,007 | O46: =IF(K43>=K46,N46,0) -> 0 | P46: =IF(K43>L46,0,O46) -> 0 | Q46: =IF(K43<K46,0,P46) -> 0
Q47: =SUM(Q45:Q46) -> 3,362
J50: 2025
J51: Inkomen box 1 | K51: ='2025 emz'!E26+'2025 emz'!E53+'2025 emz'!E54 -> 0 | S51: tarieven 2025 aanpassen
K53: 0 | L53: 28,406 | M53: 3,068 | Q53: =IF(K51<L53,M53,0) -> 3,068
K54: =L53+1 -> 28,407 | L54: 76,817 | M54: 6.337% | N54: =M53-((K51-L53)*M54) -> 4,868 | O54: =IF(K51>=K54,N54,0) -> 0 | P54: =IF(K51>L54,0,O54) -> 0 | Q54: =IF(K51<K54,0,P54) -> 0 | S54: Is er verschil tussen belastbaar inkomen uit werk en woning (2024) en verzamelinkomen (2025)?
Q55: =SUM(Q53:Q54) -> 3,068 | S55: Oh oh: inkomen box 2 en box 3 telt nu ook mee!

Sheet Totale heffingskortingen (hidden)
A1: 2018 | D1: 2019 | G1: 2020 | J1: 2021 | M1: 2022 | P1: 2023 | S1: 2024 | V1: 2025
A2: EMZ | D2: EMZ | G2: EMZ | J2: EMZ | M2: EMZ | P2: EMZ | S2: EMZ | V2: EMZ | Y2: tarieven 2024 aanpassen
A3: Verschuldigde IB | B3: ='2018 emz'!F35 -> (1) | D3: Verschuldigde IB | E3: ='2019 emz'!F35 -> (1) | G3: Verschuldigde IB | H3: ='2020 emz'!F36 -> (1) | J3: Verschuldigde IB | K3: ='2021 emz'!F36 -> (1) | M3: Verschuldigde IB | N3: ='2022 emz'!G38 -> (1) | P3: Verschuldigde IB | Q3: ='2023 emz'!G38 -> (1) | S3: Verschuldigde IB | T3: ='2024 emz'!G40 -> (1) | V3: Verschuldigde IB | W3: ='2025 emz'!G36 -> (1)
A4: Berekende heffingskortingen | B4: ='2018 emz'!F39 -> 2,265 | D4: Berekende heffingskortingen | E4: ='2019 emz'!F39 -> 2,477 | G4: Berekende heffingskortingen | H4: ='2020 emz'!F40 -> 2,711 | J4: Berekende heffingskortingen | K4: ='2021 emz'!F40 -> 2,837 | M4: Berekende heffingskortingen | N4: ='2022 emz'!G42 -> 2,888 | P4: Berekende heffingskortingen | Q4: ='2023 emz'!G42 -> 3,070 | S4: Berekende heffingskortingen | T4: ='2024 emz'!G44 -> 3,362 | V4: Berekende heffingskortingen | W4: ='2025 emz'!G40 -> 3,068
B5: =IF(B4>B3,B3,B4) -> (1) | E5: =IF(E4>E3,E3,E4) -> (1) | H5: =IF(H4>H3,H3,H4) -> (1) | K5: =IF(K4>K3,K3,K4) -> (1) | N5: =IF(N4>N3,N3,N4) -> (1) | Q5: =IF(Q4>Q3,Q3,Q4) -> (1) | T5: =IF(T4>T3,T3,T4) -> (1) | W5: =IF(W4>W3,W3,W4) -> (1)
A8: DGA | D8: DGA | G8: DGA
A9: Verschuldigde IB | B9: =#REF! ->  | D9: Verschuldigde IB | E9: =#REF! ->  | G9: Verschuldigde IB | H9: =#REF! -> 
A10: Berekende heffingskortingen | B10: =#REF! ->  | D10: Berekende heffingskortingen | E10: =#REF! ->  | G10: Berekende heffingskortingen | H10: =#REF! -> 
B11: =IF(B10>B9,B9,B10) ->  | E11: =IF(E10>E9,E9,E10) ->  | H11: =IF(H10>H9,H9,H10) -> 
